bitfinex/quotes_BTCUSD_20220731
["timestamp","ask_amount","ask_price","bid_price","bid_amount"]
[1659234153383,0.05,23796.0,23793.0,0.00020911]
[1659234153617,0.07782973,23794.0,23793.0,0.00020911]
[1659234153843,2.48607506,23794.0,23793.0,0.00020911]
[1659234154074,2.58306406,23794.0,23793.0,0.00020911]
[1659234154306,2.15157406,23794.0,23792.0,0.0011]
[1659234154523,0.48508706,23793.0,23792.0,0.0011]
[1659234154744,0.53207606,23793.0,23792.0,0.0011]
[1659234155667,0.83207606,23793.0,23792.0,0.0011]
[1659234155887,1.90440066,23793.0,23792.0,0.0011]
[1659234156133,0.56357606,23793.0,23792.0,0.0011]
[1659234156368,0.86357606,23793.0,23792.0,0.0011]
[1659234156587,0.94257606,23793.0,23792.0,0.0011]
[1659234157095,1.03288809,23793.0,23792.0,0.0011]
[1659234157324,0.68288809,23793.0,23792.0,0.0011]
[1659234157541,1.64845021,23793.0,23792.0,0.0011]
[1659234157829,1.60095021,23793.0,23792.0,0.0011]
[1659234158113,1.65095021,23793.0,23792.0,0.0011]
[1659234158337,1.60095021,23793.0,23792.0,0.0011]
[1659234158547,1.67995021,23793.0,23792.0,0.0011]
[1659234158774,0.63288809,23793.0,23792.0,0.0011]
[1659234158992,0.125989,23793.0,23792.0,0.0011]
[1659234159430,0.53324633,23793.0,23792.0,0.0011]
[1659234159880,0.45424633,23793.0,23792.0,0.0011]
[1659234160096,0.5906,23794.0,23792.0,0.0011]
[1659234160097,0.824789,23799.0,23792.0,0.04555]
[1659234160324,0.824789,23799.0,23792.0,0.45280733]
[1659234160325,0.5713,23798.0,23792.0,0.45280733]
[1659234160556,0.079,23793.0,23792.0,0.45280733]
[1659234160777,0.079,23793.0,23792.0,1.05546433]
[1659234161233,0.079,23793.0,23792.0,0.71101433]
[1659234161470,0.10081203,23793.0,23792.0,0.40835733]
[1659234161730,0.3,23797.0,23792.0,0.40835733]
[1659234162001,0.3,23797.0,23792.0,0.0011]
[1659234162002,0.210126,23795.0,23792.0,0.0011]
[1659234162234,0.210126,23795.0,23792.0,0.00102875]
[1659234162235,0.07782973,23793.0,23792.0,0.00102875]
[1659234162452,0.88207606,23793.0,23792.0,0.00102875]
[1659234162676,0.90740899,23793.0,23792.0,0.00102875]
[1659234163137,0.90740899,23793.0,23792.0,0.00064975]
[1659234163599,0.60740899,23793.0,23792.0,0.00064975]
[1659234164723,0.65340899,23793.0,23792.0,0.00064975]
[1659234165169,0.68490899,23793.0,23792.0,0.00064975]
[1659234165652,0.65340899,23793.0,23792.0,0.00064975]
[1659234165896,0.60740899,23793.0,23792.0,0.00064975]
[1659234166572,0.72040899,23793.0,23792.0,0.00064975]
[1659234166799,0.67040899,23793.0,23792.0,0.00064975]
[1659234167750,0.60740899,23793.0,23792.0,0.00064975]
[1659234168439,0.00063025,23792.0,23789.0,0.001]
[1659234168668,1.07782973,23790.0,23789.0,0.001]
[1659234168919,2.49137606,23790.0,23789.0,0.001]
[1659234169368,1.49137606,23790.0,23789.0,0.001]
[1659234170512,1.15297606,23790.0,23789.0,0.001]
[1659234170977,1.06948827,23790.0,23789.0,0.001]
[1659234171734,1.03148827,23790.0,23789.0,0.001]
[1659234172185,1.0533003,23790.0,23789.0,0.001]
[1659234172441,1.1323003,23790.0,23789.0,0.001]
[1659234174060,0.82782973,23789.0,23788.0,0.0011]
[1659234174280,0.07782973,23789.0,23788.0,0.0011]
[1659234174507,0.11905773,23789.0,23788.0,0.0011]
[1659234175208,0.041228,23789.0,23788.0,0.0011]
[1659234176579,0.085228,23789.0,23788.0,0.0011]
[1659234176810,0.49248533,23789.0,23788.0,0.0011]
[1659234177763,0.44848533,23789.0,23788.0,0.0011]
[1659234178462,0.49448533,23789.0,23788.0,0.0011]
[1659234178680,0.087228,23789.0,23788.0,0.0011]
[1659234179809,0.041228,23789.0,23788.0,0.0011]
[1659234180519,0.088228,23789.0,23788.0,0.0011]
[1659234181211,0.482228,23789.0,23788.0,0.0011]
[1659234181916,0.394,23789.0,23788.0,0.0011]
[1659234182145,0.89248533,23789.0,23788.0,0.0011]
[1659234182684,0.94248533,23789.0,23788.0,0.0011]
[1659234183136,0.93125408,23789.0,23788.0,0.0011]
[1659234183591,0.88125408,23789.0,23788.0,0.0011]
[1659234183846,0.83125408,23789.0,23788.0,0.0011]
[1659234184082,0.05,23788.0,23784.0,0.00011426]
[1659234184308,0.40725733,23787.0,23784.0,0.00011426]
[1659234184553,1.02782973,23785.0,23784.0,0.00011426]
[1659234184809,1.02782973,23785.0,23783.0,0.0022]
[1659234184810,0.40725733,23785.0,23783.0,0.0022]
[1659234185047,0.71905773,23784.0,23783.0,0.0022]
[1659234185268,1.54631506,23784.0,23783.0,0.0022]
[1659234185761,1.49631506,23784.0,23783.0,0.0022]
[1659234185995,1.17631506,23784.0,23783.0,0.0022]
[1659234186645,1.17631506,23784.0,23782.0,0.0033]
[1659234186646,1.07782973,23783.0,23782.0,0.0033]
[1659234186882,1.48508706,23783.0,23782.0,0.0033]
[1659234187111,1.52631506,23783.0,23782.0,0.0033]
[1659234187328,1.82631506,23783.0,23782.0,0.0033]
[1659234187826,1.82631506,23783.0,23777.0,0.0022]
[1659234187827,0.12782973,23780.0,23777.0,0.0022]
[1659234188062,1.07782973,23778.0,23777.0,0.0022]
[1659234188289,1.07782973,23778.0,23774.0,0.0011]
[1659234188290,0.07782973,23775.0,23774.0,0.0005]
[1659234188518,0.11905773,23775.0,23774.0,0.0005]
[1659234188737,0.14086976,23775.0,23774.0,0.00069293]
[1659234189200,0.59812709,23775.0,23774.0,0.00069293]
[1659234189429,0.54812709,23775.0,23774.0,0.00069293]
[1659234189658,0.59812709,23775.0,23774.0,0.0005]
[1659234189893,0.47029736,23775.0,23774.0,0.0005]
[1659234190682,0.51629736,23775.0,23774.0,0.0005]
[1659234191166,0.087228,23775.0,23774.0,0.04495]
[1659234191401,0.046,23775.0,23774.0,0.04495]
[1659234191853,0.6122,23779.0,23774.0,0.04495]
[1659234192085,0.041228,23778.0,23774.0,0.04495]
[1659234192318,0.6122,23779.0,23775.0,0.01286113]
[1659234192559,0.041228,23778.0,23775.0,0.01286113]
[1659234192789,0.02181203,23778.0,23775.0,0.010511]
[1659234193013,0.041228,23777.0,23775.0,0.01216848]
[1659234193245,0.02181203,23778.0,23775.0,0.01216848]
[1659234193468,0.6912,23779.0,23775.0,0.46380694]
[1659234193469,0.079,23779.0,23775.0,0.46380694]
[1659234193704,0.079,23779.0,23775.0,0.48228694]
[1659234193921,0.547,23782.0,23775.0,0.48228694]
[1659234194240,0.95425733,23782.0,23775.0,0.47728694]
[1659234194403,0.0408,23786.0,23776.0,0.73877733]
[1659234194640,0.079,23779.0,23776.0,0.41776633]
[1659234194858,0.079,23779.0,23777.0,0.303323]
[1659234195086,0.079,23779.0,23778.0,0.36618413]
[1659234195327,0.079,23779.0,23778.0,0.06286113]
[1659234195574,0.079,23779.0,23778.0,0.90496146]
[1659234195807,1.035131,23791.0,23778.0,0.90496146]
[1659234195808,0.8861,23790.0,23778.0,1.68787894]
[1659234196027,0.40725733,23789.0,23782.0,0.010507]
[1659234196281,0.40725733,23789.0,23782.0,0.41776433]
[1659234196506,0.6661,23790.0,23784.0,0.010507]
[1659234196774,0.041228,23789.0,23784.0,0.41776433]
[1659234197020,0.6661,23790.0,23788.0,0.05]
[1659234197021,0.08,23790.0,23788.0,0.05]
[1659234197268,0.08,23790.0,23789.0,0.06286113]
[1659234197503,0.10181203,23790.0,23788.0,0.010505]
[1659234197734,0.10181203,23790.0,23785.0,0.41776233]
[1659234197735,0.041228,23789.0,23785.0,0.41776233]
[1659234197956,0.02181203,23790.0,23785.0,0.41776233]
[1659234198407,0.079,23789.0,23785.0,0.41776233]
[1659234199793,0.02181203,23790.0,23786.0,0.01286113]
[1659234200020,0.041228,23789.0,23786.0,0.01286113]
[1659234200259,0.02181203,23790.0,23786.0,0.01286113]
[1659234200487,0.041228,23789.0,23786.0,0.01286113]
[1659234201391,0.10081203,23790.0,23786.0,0.01286113]
[1659234201611,0.041228,23789.0,23786.0,0.01286113]
[1659234201907,0.10081203,23790.0,23786.0,0.01286113]
[1659234202116,0.041228,23789.0,23785.0,0.41776233]
[1659234202576,0.079,23789.0,23785.0,0.010505]
[1659234202800,0.40725733,23788.0,23779.0,0.5465]
[1659234203028,0.40725733,23788.0,23782.0,0.00013872]
[1659234203278,0.041228,23787.0,23782.0,0.00013872]
[1659234203490,0.40725733,23787.0,23783.0,0.010509]
[1659234203699,0.289187,23789.0,23783.0,0.010509]
[1659234203700,0.041228,23786.0,23783.0,0.010509]
[1659234203964,0.210187,23789.0,23783.0,0.010509]
[1659234204184,0.041228,23788.0,23783.0,0.010509]
[1659234204397,0.079,23786.0,23783.0,0.010509]
[1659234204624,0.041228,23785.0,23783.0,0.010509]
[1659234204845,0.079,23786.0,23783.0,0.010509]
[1659234205065,0.041228,23785.0,23783.0,0.010509]
[1659234205494,0.079,23786.0,23783.0,0.010509]
[1659234205754,0.041228,23785.0,23783.0,0.010509]
[1659234205976,0.61744433,23789.0,23783.0,0.010509]
[1659234206202,0.210198,23787.0,23783.0,0.010509]
[1659234206421,0.079,23785.0,23783.0,0.010509]
[1659234206659,0.041228,23784.0,23783.0,0.02337013]
[1659234206895,0.079,23785.0,23783.0,0.010509]
[1659234207336,0.120228,23785.0,23783.0,0.010509]
[1659234208294,0.02181203,23786.0,23783.0,0.010509]
[1659234208518,0.120228,23785.0,23783.0,0.010509]
[1659234208735,0.120228,23785.0,23783.0,0.02384237]
[1659234209191,0.079,23785.0,23783.0,0.010509]
[1659234209428,0.120228,23785.0,23783.0,0.010509]
[1659234209721,0.041228,23785.0,23783.0,0.010509]
[1659234209945,0.041228,23785.0,23783.0,0.02337013]
[1659234210172,1.053598,23790.0,23784.0,0.05]
[1659234210173,0.9485,23790.0,23784.0,0.05]
[1659234210414,0.5786,23790.0,23785.0,0.41776433]
[1659234210876,0.041228,23789.0,23785.0,0.41776433]
[1659234211101,0.02181203,23788.0,23785.0,0.41776433]
[1659234211319,0.5786,23790.0,23785.0,0.41776433]
[1659234211574,0.041228,23789.0,23785.0,0.41776433]
[1659234211796,0.041228,23789.0,23783.0,0.010509]
[1659234211797,0.40725733,23789.0,23783.0,0.010509]
[1659234212019,0.251427,23788.0,23780.0,0.010509]
[1659234212250,0.40725733,23787.0,23782.0,0.010509]
[1659234212704,0.61745633,23788.0,23782.0,0.010509]
[1659234212931,0.041228,23787.0,23782.0,0.010509]
[1659234213142,0.210199,23788.0,23782.0,0.41776633]
[1659234213363,0.041228,23787.0,23782.0,0.41776633]
[1659234213664,0.40725733,23787.0,23782.0,0.010509]
[1659234213877,0.041228,23786.0,23782.0,0.010509]
[1659234214111,0.02181203,23785.0,23782.0,0.010509]
[1659234214338,0.40725733,23787.0,23783.0,0.01286113]
[1659234214568,0.40725733,23787.0,23782.0,0.010509]
[1659234214569,0.041228,23786.0,23782.0,0.010509]
[1659234214785,0.48625733,23787.0,23782.0,0.010509]
[1659234215473,0.041228,23786.0,23782.0,0.010509]
[1659234215701,0.02181203,23785.0,23782.0,0.010509]
[1659234215952,0.40725733,23787.0,23782.0,0.010509]
[1659234216172,0.041228,23786.0,23782.0,0.010509]
[1659234216399,0.40725733,23787.0,23786.0,6.349e-05]
[1659234216624,0.47029736,23787.0,23786.0,6.349e-05]
[1659234218219,0.06304003,23787.0,23786.0,6.349e-05]
[1659234218457,0.14204003,23787.0,23786.0,6.349e-05]
[1659234220249,0.06304003,23787.0,23786.0,6.349e-05]
[1659234220481,0.14204003,23787.0,23786.0,6.349e-05]
[1659234222364,0.06304003,23787.0,23786.0,6.349e-05]
[1659234222591,0.14204003,23787.0,23786.0,6.349e-05]
[1659234223278,0.120228,23787.0,23786.0,6.349e-05]
[1659234223731,0.041228,23787.0,23786.0,6.349e-05]
[1659234224395,0.120228,23787.0,23786.0,6.349e-05]
[1659234225835,0.041228,23787.0,23786.0,6.349e-05]
[1659234226498,0.120228,23787.0,23786.0,6.349e-05]
[1659234227013,0.14204003,23787.0,23786.0,6.349e-05]
[1659234227250,0.120228,23787.0,23786.0,6.349e-05]
[1659234227718,0.041228,23787.0,23786.0,6.349e-05]
[1659234227939,0.06304003,23787.0,23786.0,6.349e-05]
[1659234228699,0.14204003,23787.0,23786.0,6.349e-05]
[1659234229772,0.47029736,23787.0,23786.0,6.349e-05]
[1659234230436,0.54929736,23787.0,23786.0,6.349e-05]
[1659234231838,0.47029736,23787.0,23786.0,6.349e-05]
[1659234232600,0.54929736,23787.0,23786.0,6.349e-05]
[1659234234248,0.47029736,23787.0,23786.0,6.349e-05]
[1659234234466,0.120228,23787.0,23786.0,6.349e-05]
[1659234234759,0.120228,23787.0,23786.0,0.04451349]
[1659234235003,0.02533293,23793.0,23789.0,0.05]
[1659234235235,0.02533293,23793.0,23792.0,0.05]
[1659234235456,0.02533293,23793.0,23792.0,0.06286113]
[1659234235679,0.02533293,23793.0,23792.0,0.05]
[1659234236625,0.02533293,23793.0,23792.0,0.019]
[1659234237117,0.43259026,23793.0,23792.0,0.019]
[1659234237344,1.00860229,23793.0,23792.0,0.019]
[1659234237796,1.00860229,23793.0,23786.0,0.01056949]
[1659234238027,0.61743033,23792.0,23788.0,0.00018715]
[1659234238254,0.40725733,23791.0,23788.0,0.00018715]
[1659234238745,0.40725733,23791.0,23788.0,0.02336813]
[1659234239884,0.40725733,23791.0,23788.0,0.02349769]
[1659234240411,0.40725733,23791.0,23788.0,0.035507]
[1659234241113,0.80725733,23791.0,23788.0,0.025]
[1659234241334,0.40725733,23790.0,23788.0,0.025]
[1659234242027,0.40725733,23790.0,23786.0,0.01056949]
[1659234242256,0.02181203,23789.0,23786.0,0.01056949]
[1659234242480,0.42906936,23789.0,23788.0,0.048]
[1659234243634,0.40725733,23789.0,23788.0,0.048]
[1659234243853,0.40725733,23789.0,23786.0,0.01056949]
[1659234244332,0.40725733,23789.0,23786.0,6.349e-05]
[1659234244556,0.61051203,23788.0,23786.0,0.07906349]
[1659234244774,0.02181203,23788.0,23786.0,0.07906349]
[1659234245898,0.02181203,23788.0,23786.0,6.349e-05]
[1659234246623,0.02181203,23788.0,23786.0,0.08006349]
[1659234247057,0.06797309,23788.0,23787.0,0.00379819]
[1659234247288,0.47523042,23788.0,23787.0,0.00379819]
[1659234248403,0.42906936,23788.0,23787.0,0.08]
[1659234249751,0.42906936,23788.0,23786.0,6.349e-05]
[1659234250018,0.75725733,23787.0,23786.0,6.349e-05]
[1659234250238,0.40725733,23787.0,23786.0,6.349e-05]
[1659234250454,0.40725733,23787.0,23786.0,0.07906349]
[1659234250684,0.42906936,23788.0,23786.0,0.07906349]
[1659234250914,0.40725733,23788.0,23786.0,0.08957149]
[1659234251386,0.40725733,23788.0,23786.0,0.07906349]
[1659234251877,0.40725733,23788.0,23786.0,6.349e-05]
[1659234252563,0.40725733,23788.0,23786.0,0.07906349]
[1659234253219,0.80725733,23788.0,23786.0,0.07906349]
[1659234253449,0.40725733,23787.0,23786.0,0.07906349]
[1659234253684,0.40725733,23787.0,23786.0,6.349e-05]
[1659234254439,0.43706936,23787.0,23786.0,0.07106349]
[1659234254883,0.53706936,23787.0,23786.0,0.07106349]
[1659234255326,0.43706936,23787.0,23786.0,0.07106349]
[1659234255608,0.48706936,23787.0,23786.0,0.07106349]
[1659234255844,0.42906936,23787.0,23786.0,6.349e-05]
[1659234256090,0.47906936,23787.0,23786.0,6.349e-05]
[1659234256315,0.42906936,23787.0,23786.0,6.349e-05]
[1659234256540,0.43706936,23787.0,23786.0,0.07106349]
[1659234257877,0.42906936,23787.0,23786.0,6.349e-05]
[1659234258547,0.43706936,23787.0,23786.0,0.07106349]
[1659234259227,0.008,23787.0,23786.0,0.08574654]
[1659234259742,0.46753293,23793.0,23786.0,0.01474654]
[1659234259979,0.40725733,23792.0,23786.0,0.01474654]
[1659234260209,0.40725733,23792.0,23787.0,0.010507]
[1659234260654,0.70725733,23792.0,23787.0,0.010507]
[1659234260907,0.40725733,23791.0,23787.0,0.010507]
[1659234261590,0.80725733,23791.0,23787.0,0.010507]
[1659234261810,0.40725733,23790.0,23787.0,0.010507]
[1659234262522,0.48425733,23790.0,23787.0,0.043507]
[1659234262960,0.07782973,23788.0,23787.0,0.033]
[1659234263187,0.78508706,23788.0,23787.0,0.033]
[1659234263463,0.48508706,23788.0,23787.0,0.033]
[1659234263942,0.48508706,23788.0,23786.0,6.349e-05]
[1659234264163,0.80725733,23787.0,23786.0,6.349e-05]
[1659234264393,0.40725733,23787.0,23786.0,6.349e-05]
[1659234266510,0.40725733,23787.0,23786.0,0.07906349]
[1659234267673,0.40725733,23787.0,23786.0,6.349e-05]
[1659234268556,0.40725733,23787.0,23786.0,0.07906349]
[1659234269891,0.40725733,23787.0,23784.0,0.01050433]
[1659234270559,0.40725733,23787.0,23786.0,0.079]
[1659234271920,0.40725733,23787.0,23784.0,0.01050433]
[1659234272146,0.40725733,23787.0,23781.0,0.00014317]
[1659234272147,0.61748333,23787.0,23780.0,0.010509]
[1659234272379,0.70725733,23786.0,23780.0,0.010509]
[1659234272609,0.40725733,23786.0,23780.0,0.010509]
[1659234272819,0.40725733,23786.0,23781.0,0.00014317]
[1659234273041,0.40725733,23786.0,23782.0,0.01051]
[1659234273766,0.02181203,23785.0,23782.0,0.01051]
[1659234274219,0.40725733,23786.0,23783.0,0.01286113]
[1659234274924,0.40725733,23786.0,23782.0,0.09051]
[1659234275812,0.02181203,23785.0,23782.0,0.01051]
[1659234276029,0.40725733,23786.0,23782.0,0.01051]
[1659234276472,0.40725733,23786.0,23782.0,0.09051]
[1659234276691,0.02181203,23785.0,23782.0,0.09051]
[1659234277869,0.02181203,23785.0,23782.0,0.01051]
[1659234278531,0.02181203,23785.0,23782.0,0.09051]
[1659234279886,0.02181203,23785.0,23782.0,0.01051]
[1659234281274,0.42906936,23785.0,23782.0,0.01051]
[1659234281733,0.42906936,23785.0,23782.0,0.09051]
[1659234281952,0.42891633,23785.0,23782.0,0.09051]
[1659234282395,0.42859534,23785.0,23782.0,0.09051]
[1659234282674,0.40725733,23785.0,23783.0,0.00095196]
[1659234282861,0.40725733,23785.0,23782.0,0.09051]
[1659234283081,0.40725733,23785.0,23782.0,0.021019]
[1659234283302,0.40725733,23785.0,23782.0,0.101019]
[1659234283743,0.40725733,23785.0,23782.0,0.11530616]
[1659234284210,0.40725733,23785.0,23782.0,0.101019]
[1659234284431,0.40725733,23785.0,23782.0,0.181019]
[1659234284654,0.40725733,23785.0,23782.0,0.101019]
[1659234285573,0.40725733,23785.0,23783.0,0.00064399]
[1659234285797,0.40725733,23785.0,23782.0,0.021019]
[1659234286459,0.02133802,23784.0,23782.0,0.101019]
[1659234287168,0.02133802,23784.0,23782.0,0.11499816]
[1659234287404,0.40725733,23785.0,23783.0,0.303352]
[1659234287635,0.40725733,23785.0,23782.0,0.101019]
[1659234287852,0.40725733,23786.0,23782.0,0.101019]
[1659234288090,0.40725733,23787.0,23782.0,0.101019]
[1659234288333,0.40725733,23787.0,23784.0,0.021014]
[1659234288829,0.02133802,23786.0,23784.0,0.021014]
[1659234289071,0.40725733,23787.0,23785.0,0.05]
[1659234289510,0.40725733,23789.0,23785.0,0.05]
[1659234289729,0.70725733,23790.0,23786.0,0.05]
[1659234289951,0.02133802,23789.0,23786.0,0.060508]
[1659234290465,0.02133802,23789.0,23786.0,0.120508]
[1659234291865,0.02133802,23789.0,23786.0,0.060508]
[1659234292554,0.02133802,23789.0,23786.0,0.139508]
[1659234293042,0.02133802,23789.0,23786.0,0.15294589]
[1659234293513,0.02133802,23789.0,23786.0,0.139508]
[1659234293728,0.02133802,23789.0,23786.0,0.060508]
[1659234294161,0.4,23788.0,23786.0,2.1e-05]
[1659234294413,0.02133802,23789.0,23786.0,2.1e-05]
[1659234295293,0.02133802,23789.0,23786.0,0.079021]
[1659234295757,0.02133802,23789.0,23786.0,0.09354423]
[1659234295991,0.02133802,23789.0,23786.0,0.079021]
[1659234296425,0.02133802,23789.0,23786.0,0.158021]
[1659234296690,0.02133802,23789.0,23786.0,0.079021]
[1659234297627,0.80725733,23788.0,23786.0,0.079]
[1659234297865,1.39531106,23787.0,23781.0,0.010509]
[1659234298115,1.39531106,23787.0,23783.0,0.01051]
[1659234298337,1.39531106,23787.0,23783.0,0.00013502]
[1659234298560,0.48508706,23787.0,23783.0,0.01064502]
[1659234298793,0.48508706,23787.0,23783.0,0.01051]
[1659234299757,0.78508706,23787.0,23781.0,0.010509]
[1659234299987,1.17388706,23787.0,23781.0,0.010509]
[1659234300207,0.48508706,23787.0,23781.0,0.010509]
[1659234300440,0.48508706,23787.0,23781.0,0.089509]
[1659234301360,0.75,23786.0,23781.0,0.06363268]
[1659234301580,0.48508706,23787.0,23781.0,0.06363268]
[1659234301792,0.48508706,23787.0,23781.0,0.010509]
[1659234302498,0.48508706,23787.0,23781.0,0.089509]
[1659234303936,0.48508706,23787.0,23781.0,0.010509]
[1659234304415,0.40725733,23787.0,23781.0,0.088509]
[1659234305751,0.40725733,23787.0,23781.0,0.010509]
[1659234306443,0.61747833,23787.0,23781.0,0.088509]
[1659234307818,0.61747833,23787.0,23781.0,0.010509]
[1659234308479,0.40725733,23787.0,23781.0,0.088509]
[1659234309861,0.40725733,23787.0,23781.0,0.010509]
[1659234312945,0.40709478,23787.0,23781.0,0.088509]
[1659234313157,0.40725733,23786.0,23781.0,0.088509]
[1659234313398,0.40725733,23786.0,23781.0,0.166509]
[1659234313870,0.4,23784.0,23781.0,0.166509]
[1659234314089,0.32133802,23783.0,23779.0,0.01061684]
[1659234314308,0.32133802,23783.0,23779.0,0.00010484]
[1659234314524,0.32133802,23783.0,23777.0,0.010511]
[1659234314762,0.07782973,23778.0,23777.0,0.010511]
[1659234315030,0.07782973,23778.0,23776.0,0.010513]
[1659234315252,0.07782973,23777.0,23776.0,0.010513]
[1659234316707,0.02133802,23778.0,23776.0,0.010513]
[1659234316930,0.5885,23780.0,23776.0,0.089513]
[1659234317165,0.02133802,23779.0,23776.0,0.089513]
[1659234317398,0.6247,23783.0,23778.0,0.02102]
[1659234317641,0.40725733,23782.0,23778.0,0.02102]
[1659234318320,0.02133802,23781.0,23778.0,0.02102]
[1659234319036,0.02133802,23781.0,23778.0,0.06951]
[1659234319704,0.07782973,23779.0,23778.0,0.06951]
[1659234319937,0.40725733,23780.0,23778.0,0.06951]
[1659234320182,0.40725733,23780.0,23778.0,0.01051]
[1659234320897,0.40725733,23780.0,23778.0,0.08951]
[1659234322279,0.40725733,23780.0,23778.0,0.01051]
[1659234322957,0.40725733,23780.0,23778.0,0.08951]
[1659234324333,0.40725733,23780.0,23778.0,0.01051]
[1659234324787,0.07782973,23779.0,23778.0,0.01051]
[1659234325005,0.07782973,23779.0,23778.0,0.08851]
[1659234325228,0.40725733,23780.0,23778.0,0.08851]
[1659234326236,0.07782973,23779.0,23778.0,0.08851]
[1659234326458,0.40725733,23779.0,23778.0,0.08851]
[1659234326715,0.40725733,23779.0,23778.0,0.01051]
[1659234326948,0.40725733,23779.0,23778.0,0.079]
[1659234327773,0.3932,23782.0,23778.0,0.09233515]
[1659234327774,0.40725733,23780.0,23778.0,0.09233515]
[1659234328103,0.40725733,23780.0,23778.0,0.079]
[1659234328218,0.40725733,23780.0,23777.0,0.010512]
[1659234328896,0.40725733,23780.0,23777.0,0.089512]
[1659234329662,0.40725733,23780.0,23777.0,0.10284715]
[1659234330110,0.40725733,23780.0,23777.0,0.02384715]
[1659234330377,0.02133802,23779.0,23777.0,0.010512]
[1659234330807,0.02133802,23779.0,23777.0,0.089512]
[1659234331231,0.40725733,23780.0,23777.0,0.089512]
[1659234331472,0.02133802,23779.0,23777.0,0.089512]
[1659234332007,0.5615,23784.0,23779.0,0.02102]
[1659234332244,0.40725733,23783.0,23779.0,0.02102]
[1659234332456,0.02133802,23782.0,23779.0,0.02102]
[1659234332677,0.42859535,23782.0,23779.0,0.02102]
[1659234333343,0.42859535,23782.0,23779.0,0.03435515]
[1659234333344,0.40725733,23782.0,23779.0,0.03435515]
[1659234333580,0.02133802,23781.0,23779.0,0.00981]
[1659234334965,0.02133802,23781.0,23779.0,0.08881]
[1659234336553,0.02133802,23781.0,23779.0,0.00981]
[1659234337249,0.02133802,23781.0,23779.0,0.08881]
[1659234339051,0.02133802,23781.0,23779.0,0.08581]
[1659234339287,0.02133802,23781.0,23779.0,0.08574674]
[1659234340443,0.02133802,23781.0,23779.0,0.00974674]
[1659234340652,0.02133802,23781.0,23776.0,0.010511]
[1659234340874,0.09533802,23781.0,23776.0,0.010511]
[1659234342226,0.14533802,23781.0,23776.0,0.010511]
[1659234342454,0.09533802,23781.0,23776.0,0.010511]
[1659234342895,0.04133802,23781.0,23776.0,0.086511]
[1659234344286,0.02133802,23781.0,23776.0,0.010511]
[1659234344500,0.42859535,23781.0,23776.0,0.010511]
[1659234344754,0.70725733,23780.0,23776.0,0.010511]
[1659234344969,1.29125733,23780.0,23776.0,0.085511]
[1659234345403,0.07782973,23777.0,23776.0,0.080511]
[1659234345656,1.29125733,23780.0,23776.0,0.080511]
[1659234346366,1.29125733,23780.0,23776.0,0.005511]
[1659234346578,0.4,23779.0,23776.0,0.005511]
[1659234347015,0.4,23779.0,23776.0,0.082511]
[1659234348190,0.4,23779.0,23776.0,0.005511]
[1659234348874,0.99125733,23780.0,23777.0,0.01333515]
[1659234349092,0.99125733,23780.0,23776.0,0.083511]
[1659234349314,0.02133802,23779.0,23776.0,0.083511]
[1659234350045,0.6,23778.0,23776.0,0.078511]
[1659234350274,0.6,23778.0,23776.0,0.000511]
[1659234350727,0.02133802,23779.0,23776.0,0.000511]
[1659234350945,0.02133802,23779.0,23776.0,0.079511]
[1659234351945,0.02133802,23779.0,23776.0,0.074511]
[1659234352899,0.02133802,23779.0,23776.0,0.082511]
[1659234353365,0.02133802,23779.0,23776.0,0.09584615]
[1659234353605,0.02133802,23779.0,23776.0,0.082511]
[1659234354271,0.02133802,23779.0,23776.0,0.005511]
[1659234354962,0.42133802,23779.0,23776.0,0.082511]
[1659234355411,0.99125733,23780.0,23776.0,0.082511]
[1659234355624,0.99125733,23780.0,23776.0,0.077511]
[1659234356297,0.99125733,23780.0,23776.0,0.000511]
[1659234356967,1.00625733,23780.0,23776.0,0.076511]
[1659234357441,0.02133802,23779.0,23776.0,0.076511]
[1659234357707,0.02133802,23779.0,23776.0,0.08993649]
[1659234357939,0.02133802,23779.0,23776.0,0.076511]
[1659234358177,0.02133802,23779.0,23776.0,0.071511]
[1659234358178,0.45,23778.0,23776.0,0.071511]
[1659234358398,0.02133802,23779.0,23774.0,0.011012]
[1659234358900,0.02133802,23779.0,23776.0,0.010511]
[1659234359132,0.02133802,23779.0,23776.0,0.088511]
[1659234360268,0.02133802,23779.0,23776.0,0.010511]
[1659234360922,0.02133802,23779.0,23776.0,0.088511]
[1659234362261,0.02133802,23779.0,23776.0,0.010511]
[1659234362981,0.02133802,23779.0,23776.0,0.088511]
[1659234363870,0.02133802,23779.0,23776.0,0.083511]
[1659234364331,0.02133802,23779.0,23776.0,0.005511]
[1659234364799,0.02133802,23779.0,23776.0,0.01893649]
[1659234365000,0.02133802,23779.0,23776.0,0.078511]
[1659234366126,0.02133802,23779.0,23776.0,0.073511]
[1659234366335,0.02133802,23779.0,23774.0,0.011012]
[1659234366867,0.04433802,23779.0,23776.0,0.087511]
[1659234367302,0.04433802,23779.0,23776.0,0.082511]
[1659234368144,0.02133802,23779.0,23776.0,0.005511]
[1659234368800,0.02133802,23779.0,23776.0,0.082511]
[1659234368801,0.04433802,23779.0,23776.0,0.082511]
[1659234370291,0.02133802,23779.0,23776.0,0.005511]
[1659234370909,0.04433802,23779.0,23776.0,0.082511]
[1659234371120,0.04433802,23779.0,23776.0,0.077511]
[1659234372182,0.04433802,23779.0,23776.0,0.000511]
[1659234372183,0.02133802,23779.0,23776.0,0.000511]
[1659234372859,0.04433802,23779.0,23776.0,0.077511]
[1659234373064,0.45,23778.0,23776.0,0.072511]
[1659234373494,0.04433802,23779.0,23776.0,0.072511]
[1659234373712,0.04433802,23779.0,23776.0,0.083022]
[1659234374205,0.02133802,23779.0,23776.0,0.010511]
[1659234375811,0.02133802,23779.0,23776.0,0.02393649]
[1659234376023,0.02133802,23779.0,23776.0,0.010511]
[1659234376254,0.03533802,23779.0,23776.0,0.085511]
[1659234376942,0.03533802,23779.0,23776.0,0.164511]
[1659234377576,0.02133802,23779.0,23776.0,0.010511]
[1659234378873,0.02133802,23779.0,23776.0,0.089511]
[1659234380338,0.210214,23786.0,23778.0,0.05]
[1659234380567,0.40725733,23786.0,23780.0,0.01051]
[1659234381292,0.40725733,23788.0,23781.0,0.303352]
[1659234381509,0.40725733,23788.0,23782.0,0.021016]
[1659234382194,0.5948,23792.0,23783.0,0.76060933]
[1659234382430,0.40725733,23791.0,23784.0,0.321014]